bitfinex-derivatives/quotes_SOLF0:USTF0_20250818
["timestamp","ask_amount","ask_price","bid_price","bid_amount"]
[1755483261336,2.87,185.77,185.66,3.03]
[1755483261741,2.87,185.77,185.69,3.03]
[1755483263549,2.87,185.81,185.69,3.03]
[1755483263752,2.87,185.89,185.75,5.3801]
[1755483263948,2.87,185.89,185.7,9.29083274]
[1755483263949,2.87,185.89,185.76,3.03]
[1755483264342,2.87,185.85,185.78,3.03]
[1755483264747,2.87,185.85,185.76,3.03]
[1755483266752,5.3775,185.84,185.76,3.03]
[1755483266952,2.87,185.83,185.76,3.03]
[1755483267350,362.22,185.9,185.76,3.03]
[1755483267557,2.87,185.86,185.76,3.03]
[1755483268054,8.2482,185.82,185.76,3.03]
[1755483268256,2.87,185.82,185.76,3.03]
[1755483268451,362.22,185.9,185.76,3.03]
[1755483268656,2.87,185.85,185.76,3.03]
[1755483269049,2.87,185.82,185.76,3.03]
[1755483269459,2.87,185.82,185.65,362.08]
[1755483269460,2.87,185.82,185.66,3.03]
[1755483269955,2.87,185.88,185.71,3.03]
[1755483270164,2.87,185.86,185.71,3.03]
[1755483270454,2.87,185.84,185.71,3.03]
[1755483270658,16.2,185.83,185.71,3.03]
[1755483270858,2.87,185.82,185.71,3.03]
[1755483271457,5.3785,185.81,185.73,5.3807]
[1755483271657,2.87,185.8,185.74,3.03]
[1755483271852,2.87,185.8,185.71,3.03]
[1755483272055,2.87,185.77,185.66,3.03]
[1755483272957,8.2495,185.77,185.69,5.3818]
[1755483273159,2.87,185.77,185.67,3.03]
[1755483273557,5.3815,185.71,185.67,3.03]
[1755483273863,2.87,185.77,185.45,10.7775]
[1755483273864,2.87,185.75,185.64,3.03]
[1755483274361,2.87,185.69,185.64,3.03]
[1755483274563,2.87,185.68,185.65,3.03]
[1755483274765,5.3822,185.68,185.55,9.29083274]
[1755483274971,16.2,185.72,185.58,3.03]
[1755483275159,2.87,185.71,185.58,3.03]
[1755483275761,9.29083274,185.73,185.58,3.03]
[1755483275762,5.3831,185.65,185.58,3.03]
[1755483275952,2.87,185.66,185.58,3.03]
[1755483276366,2.87,185.66,185.59,5.3847]
[1755483276567,159.02,185.82,185.6,3.03]
[1755483276568,9.29083274,185.77,185.6,3.03]
[1755483276774,2.87,185.76,185.6,3.03]
[1755483277264,2.87,185.76,185.55,3.03]
[1755483277667,2.87,185.73,185.58,9.29083274]
[1755483277961,159.02,185.82,185.59,3.03]
[1755483278157,2.87,185.85,185.71,3.03]
[1755483278668,2.87,185.85,185.75,5.3801]
[1755483278872,2.87,185.85,185.76,3.03]
[1755483280069,2.87,185.85,185.79,3.03]
[1755483280268,5.3769,185.87,185.79,3.03]
[1755483280768,2.87,185.88,185.79,3.03]
[1755483281170,5.3769,185.87,185.79,3.03]
[1755483281365,2.87,185.86,185.79,3.03]
[1755483281558,2.87,185.86,185.81,5.3783]
[1755483281763,2.87,185.89,185.82,3.03]
[1755483282162,8.2461,185.89,185.82,3.03]
[1755483282367,2.87,185.89,185.82,3.03]
[1755483282764,2.87,185.89,185.82,8.4079]
[1755483283169,2.87,185.89,185.83,8.4077]
[1755483283358,2.87,185.89,185.84,3.03]
[1755483283564,2.87,185.88,185.85,3.03]
[1755483283763,2.87,185.88,185.82,3.03]
[1755483285173,5.3757,185.91,185.78,9.29083274]
[1755483285174,2.87,185.91,185.78,9.29083274]
[1755483285468,2.87,185.91,185.79,3.03]
[1755483285664,2.87,185.91,185.86,5.3769]
[1755483285860,2.87,185.94,185.79,3.03]
[1755483286265,2.87,185.94,185.85,5.3769]
[1755483286465,159.22,185.95,185.78,9.29083274]
[1755483286466,2.87,185.92,185.86,3.03]
[1755483286869,2.87,185.92,185.86,8.4067]
[1755483287066,2.87,185.92,185.86,3.03]
[1755483287773,2.87,185.95,185.86,3.03]
[1755483287964,158.4,186.01,185.89,5.3759]
[1755483288165,2.84,185.94,185.82,9.29083274]
[1755483288365,2.84,185.94,185.92,2.95]
[1755483288561,2.84,185.94,185.64,25.44003274]
[1755483288562,2.84,185.93,185.9,2.95]
[1755483288772,2.84,185.93,185.8,2.95]
[1755483289169,2.84,185.95,185.8,2.95]
[1755483289561,2.84,185.95,185.86,2.95]
[1755483289776,2.84,185.92,185.86,2.95]
[1755483290165,2.84,185.92,185.86,8.3267]
[1755483290764,2.84,185.92,185.86,2.95]
[1755483291873,2.84,185.92,185.76,2.95]
[1755483292069,2.84,185.87,185.81,8.3281]
[1755483292667,8.2167,185.87,185.81,8.3281]
[1755483293377,19.04,185.9,185.72,2.95]
[1755483293573,2.84,185.85,185.66,2.95]
[1755483293766,5.3792,185.79,185.66,2.95]
[1755483293965,2.84,185.79,185.66,2.95]
[1755483294371,2.84,185.79,185.72,2.95]
[1755483294873,2.84,185.77,185.73,2.95]
[1755483295074,16.2,185.84,185.63,9.29083274]
[1755483295274,16.2,185.84,185.7,2.95]
[1755483295275,2.84,185.76,185.7,2.95]
[1755483297071,2.84,185.81,185.7,2.95]
[1755483297272,2.84,185.79,185.7,2.95]
[1755483297486,2.84,185.77,185.7,2.95]
[1755483297780,8.2206,185.74,185.71,2.95]
[1755483298372,2.84,185.77,185.72,2.95]
[1755483298570,6.68930627,185.76,185.73,2.95]
[1755483298775,2.84,185.76,185.73,2.95]
[1755483298971,14.85904994,185.84,185.74,2.95]
[1755483299175,2.84,185.82,185.74,2.95]
[1755483299375,2.84,185.8,185.74,2.95]
[1755483299583,158.34,185.85,185.63,9.29083274]
[1755483299584,3.84926701,185.79,185.63,9.29083274]
[1755483299782,3.84926701,185.78,185.76,8.3298]
[1755483299979,3.84926701,185.77,185.76,8.3298]
[1755483300181,2.84,185.84,185.68,2.95]
[1755483300373,7.77224419,185.83,185.71,9.29083274]
[1755483300574,3.86193852,185.82,185.72,2.95]
[1755483300784,3.86193852,185.81,185.79,2.95]
[1755483300981,3.86193852,185.81,185.71,9.29083274]
[1755483300982,3.86920008,185.8,185.71,9.29083274]
[1755483301280,5.5682172,185.87,185.78,5.379]
[1755483301485,8.4082172,185.85,185.79,2.95]
[1755483301784,5.5682172,185.93,185.83,2.95]
[1755483301979,3.91631661,185.92,185.83,2.95]
[1755483302280,8.4082172,185.94,185.83,2.95]
[1755483302281,2.84,185.94,185.83,2.95]
[1755483302482,2.84,185.94,185.88,2.95]
[1755483302985,2.84,185.94,185.85,2.95]
[1755483303284,2.84,185.96,185.85,2.95]
[1755483303481,5.3749,185.94,185.79,9.29083274]
[1755483303688,2.84,185.93,185.86,2.95]
[1755483303982,5.5682172,185.98,185.86,2.95]
[1755483304279,2.84,185.95,185.8,2.95]
[1755483304680,2.84,185.95,185.87,5.3764]
[1755483304886,2.84,185.95,185.88,2.95]
[1755483305280,8.2144,185.95,185.88,2.95]
[1755483306182,5.5682172,185.99,185.88,2.95]
[1755483306379,2.84,185.98,185.8,2.95]
[1755483306576,5.5682172,185.94,185.8,2.95]
[1755483306783,2.84,185.86,185.8,2.95]
[1755483307186,2.84,185.92,185.8,2.95]
[1755483308180,2.84,185.92,185.84,5.3773]
[1755483308385,2.84,185.92,185.85,2.95]
[1755483308581,2.84,185.95,185.85,2.95]
[1755483308780,206.78189909,185.98,185.85,2.95]
[1755483308781,2.84,185.97,185.85,2.95]
[1755483309178,2.84,185.97,185.91,5.3753]
[1755483309582,2.84,185.97,185.79,15.1432994]
[1755483309885,2.84,185.97,185.86,2.95]
[1755483310487,2.84,185.92,185.86,2.95]
[1755483310787,2.84,185.92,185.77,2.95]
[1755483310983,15.1432994,186.02,185.81,5.3784]
[1755483310984,2.84,185.88,185.81,5.3784]
[1755483311175,2.84,185.88,185.81,8.3284]
[1755483311584,2.84,185.86,185.81,2.95]
[1755483311778,2.84,185.94,185.78,2.95]
[1755483311990,5.5682172,185.92,185.78,2.95]
[1755483312276,2.84,185.84,185.78,2.95]
[1755483312482,2.84,185.84,185.75,2.95]
[1755483312789,2.84,185.84,185.66,25.9085994]
[1755483312991,2.84,185.92,185.72,2.95]
[1755483313991,2.84,185.9,185.76,2.95]
[1755483314187,2.84,185.88,185.76,2.95]
[1755483314489,2.84,185.82,185.76,2.95]
[1755483314792,2.84,185.82,185.74,2.95]
[1755483314986,2.84,185.82,185.67,159.58]
[1755483314987,2.84,185.82,185.68,2.95]
[1755483315287,5.3798,185.76,185.69,2.95]
[1755483315585,2.84,185.75,185.69,2.95]
[1755483316188,5.3804,185.74,185.69,2.95]
[1755483316392,2.84,185.73,185.69,2.95]
[1755483316587,2.84,185.72,185.69,2.95]
[1755483316988,2.84,185.75,185.7,2.95]
[1755483317184,2.84,185.86,185.66,2.95]
[1755483317387,2.84,185.84,185.66,2.95]
[1755483317988,5.3781,185.82,185.73,5.3804]
[1755483318180,2.89,185.81,185.73,2.94]
[1755483318583,5.3778,185.84,185.76,5.3795]
[1755483318784,2.89,185.79,185.76,2.94]
[1755483319184,2.89,185.78,185.76,2.94]
[1755483319386,2.89,185.83,185.76,2.94]
[1755483320184,2.89,185.81,185.76,2.94]
[1755483320381,2.89,185.8,185.76,2.94]
[1755483320781,2.89,185.79,185.76,2.94]
[1755483321301,2.89,185.8,185.73,2.94]
[1755483322486,2.89,185.76,185.7,8.3215]
[1755483323788,8.2698,185.76,185.7,8.3215]
[1755483324186,2.89,185.73,185.7,2.94]
[1755483324391,16.2,185.84,185.66,2.94]
[1755483324593,2.89,185.81,185.66,2.94]
[1755483324788,2.89,185.79,185.66,2.94]
[1755483325101,5.381,185.73,185.67,5.3822]
[1755483325395,5.381,185.73,185.59,15.1432994]
[1755483325396,2.89,185.81,185.65,2.94]
[1755483325590,2.89,185.79,185.65,2.94]
[1755483325789,2.89,185.68,185.65,2.94]
[1755483326189,2.89,185.68,185.65,8.323]
[1755483326492,19.09,185.78,185.62,2.94]
[1755483326792,19.09,185.75,185.59,2.94]
[1755483327000,16.2,185.72,185.59,2.94]
[1755483327296,361.56,185.77,185.53,361.52]
[1755483327297,19.97501271,185.71,185.53,361.52]
[1755483327600,2.89,185.7,185.56,2.94]
[1755483327994,2.89,185.68,185.65,2.94]
[1755483328297,2.89,185.71,185.59,9.26475043]
[1755483328498,2.89,185.71,185.6,2.94]
[1755483328802,2.89,185.75,185.6,2.94]
[1755483328990,2.89,185.75,185.64,2.94]
[1755483329590,169.18475043,185.86,185.65,2.94]
[1755483329591,2.89,185.81,185.65,2.94]
[1755483330294,2.89,185.76,185.69,2.94]
[1755483330695,5.3804,185.75,185.69,2.94]
[1755483330895,2.89,185.74,185.62,2.94]
[1755483331295,2.89,185.74,185.63,9.26475043]
[1755483331497,2.89,185.74,185.64,2.94]
[1755483331900,2.89,185.73,185.64,2.94]
[1755483332393,2.89,185.73,185.59,9.26475043]
[1755483332600,2.89,185.73,185.6,2.94]
[1755483333002,25.46475043,185.82,185.56,159.88]
[1755483333003,2.89,185.67,185.62,2.94]
[1755483333205,2.89,185.66,185.63,2.94]
[1755483333400,2.89,185.65,185.63,2.94]
[1755483333595,2.89,185.77,185.57,2.94]
[1755483333804,2.89,185.75,185.57,2.94]
[1755483333998,8.2727,185.67,185.61,2.94]
[1755483334401,2.89,185.67,185.61,2.94]
[1755483334594,2.89,185.7,185.61,2.94]
[1755483336499,2.89,185.8,185.61,2.94]
[1755483336805,2.89,185.8,185.62,2.94]
[1755483337008,2.89,185.77,185.72,2.94]
[1755483337296,2.89,185.76,185.73,2.94]
[1755483337498,2.89,185.75,185.73,2.94]
[1755483338304,2.89,185.76,185.7,2.94]
[1755483338599,5.3804,185.74,185.67,2.94]
[1755483338804,2.89,185.73,185.67,2.94]
[1755483338993,5.3813,185.71,185.67,2.94]
[1755483339303,2.89,185.7,185.67,2.94]
[1755483339499,2.89,185.68,185.59,15.18861127]
[1755483339705,16.2,185.81,185.65,2.94]
[1755483340000,5.3822,185.68,185.65,2.94]
[1755483340204,2.89,185.67,185.65,2.94]
[1755483340605,2.89,185.65,185.62,2.94]
[1755483340804,16.2,185.78,185.63,2.94]
[1755483341001,19.09,185.76,185.63,2.94]
[1755483341197,2.89,185.73,185.55,2.94]
[1755483342013,2.89,185.67,185.55,2.94]
[1755483342505,2.89,185.75,185.55,2.94]
[1755483342702,16.2,185.7,185.5,2.94]
[1755483342906,2.89,185.66,185.5,2.94]
[1755483343209,2.89,185.66,185.56,2.94]
[1755483343796,16.2,185.66,185.53,2.94]
[1755483344005,2.89,185.64,185.53,2.94]
[1755483344309,5.3849,185.59,185.53,5.3862]
[1755483344499,2.89,185.57,185.54,2.94]
[1755483344700,2.89,185.57,185.55,2.94]
[1755483345107,2.89,185.57,185.47,2.94]
[1755483345600,16.2,185.68,185.47,2.94]
[1755483345796,2.89,185.67,185.5,2.94]
[1755483346708,5.3839,185.62,185.55,5.3857]
[1755483347010,2.89,185.66,185.55,8.3257]
[1755483347305,5.3841,185.62,185.56,5.3854]
[1755483347506,2.89,185.61,185.58,2.94]
[1755483347697,520.22,185.75,185.58,2.94]
[1755483347698,16.2,185.72,185.58,2.94]
[1755483347902,5.3837,185.63,185.58,2.94]
[1755483348110,2.91,185.61,185.58,2.94]
[1755483348306,5.3837,185.63,185.58,2.94]
[1755483348702,2.91,185.6,185.58,2.94]
[1755483349296,5.3837,185.63,185.58,2.94]
[1755483349500,2.91,185.63,185.58,5.385]
[1755483349706,16.2,185.72,185.52,2.96]
[1755483349901,2.91,185.71,185.52,2.96]
[1755483350108,2.91,185.69,185.57,2.96]
[1755483350499,5.3837,185.63,185.57,8.3451]
[1755483350703,5.3837,185.63,185.57,5.3851]
[1755483350901,2.91,185.6,185.58,2.96]
[1755483352200,16.2,185.72,185.56,5.3854]
[1755483352397,2.91,185.7,185.55,2.96]
[1755483352601,2.91,185.68,185.55,2.96]
[1755483353201,2.91,185.6,185.57,5.3853]
[1755483353397,2.91,185.69,185.55,2.96]
[1755483353603,2.91,185.67,185.55,2.96]
[1755483353808,2.91,185.66,185.56,2.96]
[1755483354803,5.384,185.62,185.58,5.3848]
[1755483355109,5.384,185.62,185.46,15.18861127]
[1755483355110,2.91,185.63,185.46,15.18861127]
[1755483355297,2.91,185.63,185.47,2.96]
[1755483356112,2.91,185.63,185.58,5.3849]
[1755483356308,2.91,185.62,185.58,5.3849]
[1755483356509,2.91,185.62,185.6,2.96]
[1755483356904,5.3833,185.64,185.61,2.96]
[1755483357108,5.383,185.65,185.54,2.96]
[1755483357305,2.91,185.73,185.54,2.96]
[1755483357501,19.11,185.71,185.54,2.96]
[1755483357706,2.91,185.69,185.54,2.96]
[1755483357908,2.91,185.69,185.58,5.3848]
[1755483358107,2.91,185.67,185.59,2.96]
[1755483358402,2.91,185.67,185.59,8.3447]
[1755483358608,2.91,185.67,185.59,2.96]
[1755483359101,5.3838,185.63,185.59,2.96]
[1755483359311,2.91,185.61,185.59,2.96]
[1755483360016,5.3839,185.62,185.6,2.96]
[1755483360204,8.2939,185.62,185.6,2.96]
[1755483360608,2.91,185.61,185.6,2.96]
[1755483362618,2.91,185.61,185.54,2.96]
[1755483362915,2.91,185.58,185.47,2.96]
[1755483363110,2.91,185.58,185.51,5.3868]
[1755483363311,5.3857,185.56,185.52,2.96]
[1755483363517,25.47071072,185.68,185.47,2.96]
[1755483363518,2.91,185.57,185.47,2.96]
[1755483363718,2.91,185.57,185.5,2.96]
[1755483364014,5.3874,185.51,185.44,2.96]
[1755483364217,5.3874,185.51,185.44,8.3491]
[1755483364421,5.3874,185.5,185.45,2.96]
[1755483364609,2.91,185.5,185.45,2.96]
[1755483364810,2.91,185.53,185.45,5.3888]
[1755483365021,8.2967,185.53,185.46,2.96]
[1755483365221,2.91,185.53,185.46,2.96]
[1755483365423,2.91,185.53,185.48,5.3879]
[1755483365609,2.91,185.53,185.42,9.27071072]
[1755483365815,2.91,185.53,185.51,2.96]
[1755483366618,2.91,185.53,185.43,2.96]
[1755483367024,2.91,185.53,185.49,5.3874]
[1755483367215,2.91,185.53,185.5,2.96]
[1755483367414,2.91,185.53,185.51,2.96]
[1755483369224,2.91,185.52,185.51,2.96]
[1755483369618,2.91,185.52,185.49,8.3476]
[1755483369818,2.91,185.52,185.49,2.96]
[1755483370016,2.91,185.51,185.49,2.96]
[1755483370219,2.91,185.53,185.43,2.96]
[1755483370420,2.91,185.52,185.5,2.96]
[1755483370617,5.3859,185.55,185.49,5.3874]
[1755483370821,2.91,185.54,185.43,2.96]
[1755483371525,2.91,185.54,185.49,5.3875]
[1755483371825,5.3863,185.54,185.49,8.3475]
[1755483372134,2.91,185.51,185.49,8.3475]
[1755483372428,2.91,185.53,185.49,2.96]
[1755483372831,5.3863,185.54,185.49,2.96]
[1755483373029,2.91,185.51,185.49,2.96]
[1755483373217,2.91,185.51,185.49,8.3476]
[1755483373422,2.91,185.51,185.5,2.96]
[1755483373825,2.91,185.62,185.47,2.96]
[1755483374123,2.91,185.59,185.47,2.96]
[1755483374320,5.3877,185.49,185.44,5.3888]
[1755483374526,2.91,185.47,185.45,2.96]
[1755483374829,2.91,185.47,185.44,2.96]
[1755483375035,2.91,185.46,185.44,2.96]
[1755483375231,2.91,185.45,185.44,2.96]
[1755483375432,2.91,185.45,185.43,2.96]
[1755483375733,2.91,185.44,185.43,2.96]
[1755483375930,2.91,185.44,185.4,361.7]
[1755483376138,2.91,185.43,185.41,2.96]
[1755483376332,2.91,185.52,185.41,2.96]
[1755483377136,19.11,185.52,185.41,2.96]
[1755483377337,2.91,185.51,185.39,2.96]
[1755483377532,2.91,185.5,185.39,8.3503]
[1755483377840,2.91,185.5,185.39,2.96]
[1755483378036,5.3895,185.43,185.39,5.3905]
[1755483378238,3.11,185.42,185.4,2.93]
[1755483378436,3.11,185.42,185.41,2.93]
[1755483378739,3.11,185.52,185.36,2.93]
[1755483379536,167.61071072,185.57,185.4,9.27071072]
[1755483379537,16.2,185.55,185.4,9.27071072]
[1755483379739,3.11,185.54,185.41,2.93]
[1755483380051,3.11,185.54,185.48,5.3879]
[1755483380243,3.11,185.54,185.48,2.93]
[1755483380643,3.11,185.54,185.5,5.3873]
[1755483380841,3.11,185.54,185.51,2.93]
[1755483381049,3.11,185.59,185.45,2.93]
[1755483381344,3.11,185.53,185.47,2.93]
[1755483381943,3.11,185.59,185.41,2.93]
[1755483382140,371.33071072,185.6,185.41,2.93]
[1755483382141,3.11,185.57,185.41,2.93]
[1755483382339,387.53071072,185.6,185.41,2.93]
[1755483382340,5.3882,185.48,185.41,8.32]
[1755483382543,3.11,185.47,185.41,2.93]
[1755483384549,3.11,185.44,185.42,2.93]
[1755483385642,9.27071072,185.56,185.34,2.93]
[1755483385643,19.31,185.47,185.34,2.93]
[1755483385841,16.24926132,185.46,185.34,2.93]
[1755483386046,6.9785506,185.45,185.34,2.93]
[1755483386252,3.11,185.44,185.34,2.93]
[1755483387148,5.3911,185.38,185.34,2.93]
[1755483387347,5.3911,185.38,185.24,9.27071072]
[1755483387348,3.11,185.38,185.35,2.93]
[1755483387946,3.11,185.38,185.36,2.93]
[1755483389051,3.11,185.37,185.34,2.93]
[1755483389353,3.11,185.37,185.35,2.93]
[1755483389552,3.11,185.36,185.32,2.93]
[1755483389849,3.11,185.43,185.25,2.93]
[1755483390059,16.2,185.4,185.25,2.93]
[1755483390354,3.11,185.38,185.25,2.93]
[1755483390748,3.85308462,185.37,185.25,2.93]
[1755483390945,3.11,185.38,185.25,2.93]
[1755483391153,3.11,185.39,185.25,2.93]
[1755483391351,3.11,185.41,185.29,2.93]
[1755483391753,3.11,185.41,185.37,2.93]
[1755483391953,362.2,185.45,185.38,2.93]
[1755483392148,5.3894,185.43,185.37,5.3911]
[1755483392344,3.11,185.44,185.36,2.93]
[1755483392546,362.26,185.57,185.36,2.93]
[1755483392547,3.11,185.53,185.36,2.93]
[1755483392751,3.11,185.51,185.42,2.93]
[1755483393459,5.3882,185.48,185.43,5.3894]
[1755483393651,3.11,185.47,185.44,2.93]
[1755483393853,362.26,185.57,185.45,2.93]
[1755483394054,3.11,185.47,185.32,9.27071072]
[1755483394355,3.11,185.47,185.44,2.93]
[1755483395359,3.11,185.47,185.45,2.93]
[1755483395554,5.3874,185.5,185.33,2.93]
[1755483395754,362.26,185.57,185.37,15.21946356]
[1755483395954,8.4957,185.56,185.38,2.93]
[1755483396153,3.11,185.56,185.38,2.93]
[1755483396659,3.11,185.52,185.46,2.93]
[1755483397057,5.3876,185.5,185.46,2.93]
[1755483397357,3.11,185.56,185.36,2.93]
[1755483397660,3.11,185.54,185.43,2.93]
[1755483398760,5.388,185.48,185.43,2.93]
[1755483398960,5.388,185.48,185.42,5.3897]
[1755483399161,8.498,185.48,185.45,2.93]
[1755483399361,3.11,185.51,185.44,2.93]
[1755483399854,362.26,185.57,185.37,15.21946356]
[1755483400156,3.11,185.56,185.38,2.93]
[1755483400562,3.11,185.56,185.51,2.93]
[1755483400762,3.11,185.55,185.52,2.93]
[1755483401259,3.11,185.55,185.53,2.93]
[1755483401464,3.11,185.54,185.51,2.93]
[1755483401662,3.11,185.6,185.47,8.3182]
[1755483401964,3.11,185.58,185.45,2.93]
[1755483402162,5.387,185.52,185.45,2.93]
[1755483402464,8.497,185.52,185.46,2.93]
[1755483402656,3.11,185.52,185.46,2.93]
[1755483403557,3.11,185.55,185.46,2.93]
[1755483404367,5.3868,185.53,185.47,5.388]
[1755483404564,3.11,185.61,185.39,15.21946356]
[1755483404761,3.11,185.59,185.4,2.93]
[1755483404962,217.82337253,185.65,185.4,2.93]
[1755483405157,16.2,185.61,185.4,2.93]
[1755483405358,3.11,185.59,185.4,2.93]
[1755483405560,3.11,185.54,185.4,2.93]
[1755483405754,3.11,185.57,185.4,2.93]
[1755483406762,3.11,185.57,185.41,10.7798]
[1755483407067,201.62337253,185.65,185.42,2.93]
[1755483407068,3.11,185.64,185.42,2.93]
[1755483407267,3.11,185.62,185.42,2.93]
[1755483407568,3.11,185.62,185.41,168.6798]
[1755483407569,3.11,185.59,185.55,8.3158]
[1755483407768,3.11,185.58,185.55,8.3158]
[1755483408169,3.11,185.58,185.55,2.93]
[1755483408463,3.11,185.58,185.45,3.1]
[1755483408660,3.11,185.58,185.56,5.3856]
[1755483408862,3.11,185.58,185.56,8.4856]
[1755483409058,201.62337253,185.65,185.44,15.21946356]
[1755483409263,3.06,185.57,185.55,8.4857]
[1755483409664,201.62337253,185.65,185.56,3.1]
[1755483409868,3.06,185.58,185.56,8.4855]
[1755483410072,3.06,185.58,185.56,3.1]
[1755483410272,5.3847,185.6,185.45,3.1]
[1755483410466,5.3847,185.6,185.54,5.3861]
[1755483410668,3.06,185.57,185.54,8.4861]
[1755483411269,5.3842,185.61,185.56,3.1]
[1755483411465,3.06,185.59,185.56,3.1]
[1755483411671,201.62337253,185.65,185.56,3.1]
[1755483411877,3.06,185.57,185.54,5.3861]
[1755483412168,16.2,185.63,185.51,3.1]
[1755483412364,3.06,185.61,185.4,141.21651959]
[1755483412567,3.06,185.59,185.41,3.1]
[1755483412964,3.06,185.53,185.41,3.1]
[1755483413169,3.06,185.55,185.41,3.1]
[1755483413365,5.3868,185.52,185.42,3.1]
[1755483413571,3.06,185.51,185.42,3.1]
[1755483414078,5.3874,185.5,185.45,5.3886]
[1755483414274,5.3874,185.5,185.45,8.4886]
[1755483414577,5.3869,185.52,185.46,5.3883]
[1755483414877,5.3869,185.52,185.42,3.1]
[1755483414878,3.06,185.52,185.42,3.1]
[1755483415473,3.06,185.51,185.48,3.1]
[1755483415673,3.06,185.58,185.46,3.1]
[1755483416183,5.3871,185.51,185.46,8.4884]
[1755483416476,3.06,185.49,185.46,8.4884]
[1755483416979,3.06,185.49,185.41,3.1]
[1755483417577,8.4477,185.49,185.43,5.3893]
[1755483417876,8.4477,185.49,185.43,8.4893]
[1755483418278,3.06,185.49,185.43,8.4893]
[1755483418473,3.06,185.49,185.43,3.1]
[1755483418872,3.06,185.49,185.41,3.1]
[1755483419172,3.06,185.49,185.41,8.4899]
[1755483419378,3.06,185.55,185.41,3.1]
[1755483419679,3.06,185.54,185.44,3.1]
[1755483420073,3.06,185.54,185.49,5.3874]
[1755483420273,201.62337253,185.65,185.43,9.28593782]
[1755483420468,3.06,185.57,185.52,3.1]
[1755483420679,201.62337253,185.65,185.53,3.1]
[1755483420882,3.06,185.55,185.53,3.1]
[1755483421280,3.06,185.54,185.52,5.3868]
[1755483421483,3.06,185.54,185.52,8.4868]
[1755483421680,3.06,185.64,185.52,8.4868]
[1755483421880,5.3849,185.59,185.52,8.4868]
[1755483422182,3.06,185.58,185.52,3.1]
[1755483422377,8.4451,185.58,185.52,3.1]
[1755483422583,3.06,185.56,185.52,3.1]